bitfinex/quotes_SOLUSD_20250310
["timestamp","ask_amount","ask_price","bid_price","bid_amount"]
[1741590003562,8.35e-05,127.85,127.84,14.6422]
[1741590004343,8.35e-05,127.85,127.84,337.39725824]
[1741590005561,10.75514174,127.85,127.81,6.883]
[1741590005760,0.14224507,127.85,127.81,25.46195824]
[1741590005952,0.14224507,127.85,127.82,10.75505824]
[1741590006152,0.14224507,127.85,127.83,10.75505824]
[1741590007169,0.14224507,127.85,127.83,18.57735824]
[1741590007471,8.35e-05,127.85,127.84,12.41175824]
[1741590007761,8.35e-05,127.85,127.84,1.6567]
[1741590007970,8.35e-05,127.85,127.82,18.57825824]
[1741590009544,0.14216157,127.84,127.81,8.5318]
[1741590009856,10.75505824,127.83,127.81,0.063]
[1741590010063,10.89721981,127.82,127.81,0.063]
[1741590010362,11.03938138,127.82,127.81,0.063]
[1741590011261,10.89721981,127.82,127.81,0.063]
[1741590011848,0.14216157,127.82,127.81,0.063]
[1741590012243,10.89721981,127.82,127.81,0.063]
[1741590012449,0.14216157,127.82,127.81,0.063]
[1741590013169,8.35e-05,127.85,127.81,25.46215824]
[1741590013352,8.35e-05,127.85,127.84,30.75505824]
[1741590013854,8.35e-05,127.85,127.84,10.75505824]
[1741590014051,8.35e-05,127.85,127.83,10.75505824]
[1741590014371,0.14216157,127.84,127.81,14.7071]
[1741590014870,0.14216157,127.84,127.81,6.883]
[1741590015365,0.14224507,127.85,127.81,25.46195824]
[1741590015750,10.89730331,127.85,127.81,6.883]
[1741590016060,10.89730331,127.85,127.81,14.707]
[1741590016258,10.89730331,127.85,127.81,6.883]
[1741590016461,0.14224507,127.85,127.81,25.46195824]
[1741590017258,0.14224507,127.85,127.82,10.75505824]
[1741590017259,8.35e-05,127.85,127.82,10.75505824]
[1741590017763,8.86387059,127.87,127.82,10.75505824]
[1741590018571,82.9,127.88,127.84,10.75505824]
[1741590018775,82.9,127.88,127.85,10.75505824]
[1741590018978,0.5,127.88,127.85,17.57505824]
[1741590019281,0.5,127.88,127.85,6.82]
[1741590019459,0.5,127.88,127.86,7.821]
[1741590019654,0.5,127.88,127.85,14.6414]
[1741590019871,0.64216157,127.88,127.85,14.6414]
[1741590020662,0.5,127.88,127.85,25.39645824]
[1741590020862,0.53,127.88,127.85,25.39645824]
[1741590021880,0.53,127.88,127.85,14.6414]
[1741590022074,0.67216157,127.88,127.85,14.6414]
[1741590022573,0.67216157,127.88,127.85,326.6414]
[1741590022780,0.67216157,127.88,127.85,14.6414]
[1741590026374,0.53,127.88,127.85,25.39645824]
[1741590027487,0.67216157,127.88,127.85,14.6414]
[1741590033587,0.53,127.88,127.85,14.6414]
[1741590033792,0.67216157,127.88,127.85,14.6414]
[1741590034092,0.53,127.88,127.85,25.39645824]
[1741590034279,0.53,127.88,127.85,44.95055824]
[1741590039171,0.53,127.88,127.86,10.75505824]
[1741590039573,0.53,127.88,127.87,7.8204]
[1741590044395,0.53,127.88,127.86,7.8208]
[1741590045202,10.89721981,127.87,127.85,0.063]
[1741590045373,11.03938138,127.86,127.85,0.063]
[1741590045581,54.05961434,127.86,127.85,0.063]
[1741590045917,60.26701434,127.86,127.85,0.063]
[1741590046286,68.08801434,127.86,127.85,0.063]
[1741590047111,68.08801434,127.86,127.81,0.063]
[1741590047112,18.933972,127.85,127.81,0.063]
[1741590047409,11.03938138,127.82,127.81,0.063]
[1741590048621,20.47688138,127.82,127.81,0.063]
[1741590048782,45.40893024,127.82,127.81,0.063]
[1741590048977,18.933972,127.81,127.74,186.363]
[1741590049190,0.14216157,127.75,127.74,186.363]
[1741590049738,0.28432314,127.77,127.74,186.363]
[1741590050813,10.75505824,127.77,127.74,186.363]
[1741590051025,0.28432314,127.76,127.74,186.363]
[1741590051191,11.03938138,127.76,127.74,0.063]
[1741590051617,0.14216157,127.75,127.74,0.063]
[1741590051822,11.03938138,127.75,127.74,0.063]
[1741590052187,29.68903024,127.75,127.74,0.063]
[1741590052693,37.51673024,127.75,127.74,0.063]
[1741590053734,80.5369632,127.75,127.74,0.063]
[1741590054101,37.51673024,127.75,127.74,0.063]
[1741590054342,35.72316686,127.75,127.74,0.063]
[1741590054538,0.28432314,127.75,127.74,0.063]
[1741590055039,17.073518,127.75,127.74,0.063]
[1741590056726,0.14216157,127.75,127.74,0.063]
[1741590056907,0.28432314,127.75,127.74,0.063]
[1741590057744,17.073518,127.75,127.74,0.063]
[1741590058120,0.28432314,127.75,127.74,0.063]
[1741590059316,0.14216157,127.75,127.74,0.063]
[1741590059816,0.28432314,127.75,127.74,0.063]
[1741590060245,0.14216157,127.75,127.74,0.063]
[1741590061332,16.93135643,127.78,127.74,0.063]
[1741590061540,0.14216157,127.77,127.74,0.063]
[1741590061740,16.93135643,127.77,127.74,0.063]
[1741590063026,17.073518,127.78,127.74,0.063]
[1741590063246,0.28432314,127.78,127.74,0.063]
[1741590063454,0.28432314,127.78,127.74,6.883]
[1741590063836,0.14216157,127.78,127.75,16.78919486]
[1741590064033,0.14216157,127.79,127.75,16.78919486]
[1741590064237,0.14216157,127.79,127.76,16.78919486]
[1741590064435,16.78919486,127.81,127.76,16.78919486]
[1741590064738,0.14216157,127.81,127.78,16.78919486]
[1741590064942,0.14216157,127.81,127.79,7.8253]
[1741590065434,0.14216157,127.83,127.79,24.61449486]
[1741590065632,0.14216157,127.83,127.81,16.78919486]
[1741590066135,0.14216157,127.87,127.82,23.60919486]
[1741590066323,0.14216157,127.87,127.83,16.78919486]
[1741590066725,0.28432314,127.87,127.83,16.78919486]
[1741590067653,0.03,127.86,127.84,16.78919486]
[1741590068023,0.03,127.86,127.83,16.78919486]
[1741590069257,0.14216157,127.85,127.82,6.84]
[1741590070254,0.14216157,127.85,127.81,23.62919486]
[1741590070452,0.31432314,127.86,127.82,16.78919486]
[1741590070638,0.17216157,127.86,127.84,16.78919486]
[1741590071841,0.03,127.86,127.84,24.61129486]
[1741590072043,0.03,127.86,127.84,7.8221]
[1741590073956,0.03,127.86,127.84,24.61129486]
[1741590074468,0.03,127.86,127.84,7.8221]
[1741590075068,0.03,127.86,127.83,16.78919486]
[1741590075245,0.03,127.86,127.83,7.8226]
[1741590075766,0.03,127.86,127.83,24.61179486]
[1741590075935,0.03,127.86,127.84,16.78919486]
[1741590076137,0.03,127.86,127.85,7.8216]
[1741590076670,0.03,127.86,127.85,24.61079486]
[1741590077060,0.03,127.86,127.85,7.8216]
[1741590077354,0.03,127.86,127.85,14.6816]
[1741590079185,0.03,127.86,127.85,6.86]
[1741590079375,0.03,127.86,127.85,14.6816]
[1741590081073,0.2018897,127.86,127.85,14.6816]
[1741590081253,0.2018897,127.86,127.85,6.86]
[1741590081462,0.2018897,127.86,127.85,14.6816]
[1741590087592,0.2018897,127.86,127.85,31.47079486]
[1741590088489,8.97e-05,127.86,127.85,50.12044372]
[1741590088793,8.97e-05,127.86,127.85,66.90963858]
[1741590089168,8.97e-05,127.86,127.85,50.12044372]
[1741590089362,5.301e-05,127.87,127.85,66.90963858]
[1741590089569,5.301e-05,127.87,127.86,33.57838972]
[1741590090467,5.301e-05,127.87,127.86,353.39938972]
[1741590091270,5.301e-05,127.87,127.86,60.04903858]
[1741590091471,0.16902807,127.89,127.87,18.64964886]
[1741590091671,0.16902807,127.89,127.88,16.78919486]
[1741590093086,0.16902807,127.89,127.88,24.60899486]
[1741590093275,0.16902807,127.89,127.88,43.25864372]
[1741590093680,2.807e-05,127.89,127.88,43.25864372]
[1741590093894,2.807e-05,127.89,127.88,229.55864372]
[1741590094267,2.807e-05,127.89,127.88,541.55864372]
[1741590094988,0.16121903,127.9,127.89,18.64964886]
[1741590094989,4.71e-05,127.9,127.89,18.64964886]
[1741590095187,8.869e-05,127.91,127.89,51.29030326]
[1741590095398,8.869e-05,127.91,127.9,35.43884372]
[1741590095593,8.869e-05,127.91,127.9,43.29738259]
[1741590095779,8.869e-05,127.91,127.9,60.08657745]
[1741590095977,0.03,127.97,127.94,20.0]
[1741590096170,0.03,127.97,127.96,35.43884372]
[1741590096373,0.03,127.99,127.96,35.43884372]
[1741590096374,0.0001,127.99,127.97,26.86794886]
[1741590096697,0.0001,127.99,127.98,238.50803858]
[1741590097075,0.0001,127.99,127.98,246.32173858]
[1741590098291,0.0001,127.99,127.98,558.46390015]
[1741590100091,0.0001,127.99,127.98,558.32173858]
[1741590100995,5.676e-05,127.99,127.98,558.32173858]
[1741590101194,0.14185959,128.01,128.0,0.14216157]
[1741590101383,7.549e-05,128.02,128.01,18.64964886]
[1741590101695,7.549e-05,128.02,128.01,35.43884372]
[1741590101891,7.549e-05,128.02,128.01,43.25064372]
[1741590104588,7.549e-05,128.02,128.01,42.31884372]
[1741590105981,7.549e-05,128.02,128.01,50.13064372]
[1741590109404,7.549e-05,128.02,128.01,267.03064372]
[1741590112414,8.533e-05,128.03,128.02,18.64964886]
[1741590112607,8.533e-05,128.03,128.02,54.96007698]
[1741590112806,8.533e-05,128.03,128.02,271.86007698]
[1741590113107,8.533e-05,128.03,128.02,270.68903858]
[1741590113309,5.385e-05,128.04,128.03,0.14216157]
[1741590113635,5.385e-05,128.04,128.03,270.44116326]
[1741590113811,5.385e-05,128.04,128.03,269.27020015]
[1741590114290,5.385e-05,128.04,128.03,277.08080015]
[1741590115595,0.03005385,128.04,128.03,277.08080015]
[1741590115918,0.03005385,128.04,128.03,446.20944372]
[1741590117018,0.03005385,128.04,128.03,229.30944372]
[1741590117195,0.03005385,128.04,128.03,186.06]
[1741590119620,0.03005385,128.04,128.03,210.65979486]
[1741590120331,0.03005385,128.04,128.03,229.30944372]
[1741590120503,0.03,128.04,128.03,446.20944372]
[1741590124313,2.67411813,128.07,128.03,446.20944372]
[1741590124522,2.67411813,128.07,128.06,16.78919486]
[1741590124902,2.67411813,128.07,128.05,31.45839486]
[1741590125318,2.67411813,128.07,128.05,23.64919486]
[1741590127014,2.67411813,128.07,128.06,16.78919486]
[1741590127230,2.70411813,128.07,128.06,16.78919486]
[1741590129029,2.70411813,128.07,128.06,24.59799486]
[1741590129329,2.70411813,128.07,128.05,23.64919486]
[1741590129501,2.70411813,128.07,128.06,16.78919486]
[1741590130919,2.70411813,128.07,128.06,24.59799486]
[1741590132411,2.70411813,128.07,128.06,43.24764372]
[1741590134030,2.70411813,128.07,128.06,24.59799486]
[1741590138414,2.70411813,128.07,128.06,43.24764372]
[1741590139943,0.5,128.1,128.08,18.64964886]
[1741590140159,0.5,128.1,128.09,50.08584372]
[1741590140956,0.0001,128.1,128.09,50.08584372]
[1741590143558,0.0001,128.1,128.09,66.87503858]
[1741590144125,0.0001,128.1,128.09,50.08584372]
[1741590144630,0.0001,128.1,128.09,285.36402045]
[1741590145862,0.0001,128.1,128.09,268.57482559]
[1741590147157,0.0001,128.1,128.09,285.36402045]
[1741590147663,0.0001,128.1,128.09,597.36402045]
[1741590150052,0.0001,128.1,128.09,597.50618202]
[1741590150258,0.03,128.15,128.13,18.64964886]
[1741590150441,0.03,128.15,128.14,16.78919486]
[1741590152043,0.03,128.15,128.13,6.82]
[1741590152751,16.96135643,128.15,128.1,202.72919486]
[1741590153046,0.14216157,128.14,128.1,209.56919486]
[1741590153349,0.14216157,128.14,128.11,16.78919486]
[1741590153540,0.17216157,128.15,128.11,16.78919486]
[1741590154053,0.17216157,128.15,128.1,192.78]
[1741590154256,0.17216157,128.15,128.11,24.59489486]
[1741590155143,0.17216157,128.15,128.11,7.8057]
[1741590155753,0.17216157,128.15,128.1,209.56919486]
[1741590155933,24.76465643,128.15,128.1,209.56919486]
[1741590156134,7.97546157,128.15,128.1,209.56919486]
[1741590156348,24.76465643,128.15,128.1,23.62919486]
[1741590156957,24.76465643,128.15,128.1,16.78919486]
[1741590157134,18.49285643,128.13,128.08,23.60919486]
[1741590157444,26.3542,128.12,128.08,31.41669486]
[1741590157643,26.3542,128.12,128.08,24.59669486]
[1741590158645,26.3542,128.12,128.08,7.8075]
[1741590158847,26.3542,128.12,128.08,24.59669486]
[1741590159635,6.3542,128.12,128.09,35.43884372]
[1741590159836,6.3542,128.12,128.1,16.78919486]
[1741590159837,0.14216157,128.12,128.1,16.78919486]
[1741590160365,0.14216157,128.12,128.11,7.8057]
[1741590160661,16.93135643,128.14,128.11,7.8057]
[1741590160862,0.14216157,128.14,128.11,7.8057]
[1741590161848,0.17216157,128.15,128.11,31.43489486]
[1741590162159,0.17216157,128.15,128.11,14.6457]
[1741590163059,0.17216157,128.15,128.11,31.43489486]
[1741590163359,16.96135643,128.15,128.11,14.6457]
[1741590163553,0.17216157,128.15,128.11,31.43489486]
[1741590164356,0.03,128.15,128.12,35.43884372]
[1741590164660,0.03,128.15,128.13,24.59369486]
[1741590164861,0.14216157,128.16,128.13,24.59369486]
[1741590165556,0.14216157,128.16,128.13,7.8045]
[1741590168863,0.14216157,128.15,128.12,26.45464886]
[1741590169652,0.14216157,128.16,128.12,26.45464886]
[1741590169838,0.14216157,128.16,128.12,43.24384372]
[1741590170040,0.14216157,128.16,128.12,26.45464886]
[1741590170262,0.14216157,128.16,128.12,43.24384372]
[1741590170644,0.14216157,128.16,128.12,26.45464886]
[1741590171662,0.14216157,128.15,128.12,26.45464886]
[1741590173367,0.14216157,128.15,128.12,43.24384372]
[1741590173547,0.14216157,128.16,128.12,43.24384372]
[1741590174267,0.14216157,128.16,128.12,37.12389518]
[1741590176073,0.17216157,128.16,128.12,37.12389518]
[1741590177871,0.03,128.16,128.12,37.12389518]
[1741590179302,0.03,128.16,128.13,10.66924632]
[1741590179502,0.03,128.16,128.14,10.66924632]
[1741590179709,0.03,128.16,128.15,6.88]
[1741590180004,0.03,128.16,128.15,14.6833]
[1741590180583,0.03,128.16,128.15,6.88]
[1741590181171,10.69924632,128.16,128.15,6.88]
[1741590181376,10.69924632,128.16,128.12,224.70488187]
[1741590181589,10.69924632,128.16,128.12,231.58488187]
[1741590182296,0.03,128.16,128.1,198.27134632]
[1741590182486,10.69924632,128.16,128.11,14.7055]
[1741590183061,10.66924632,128.15,128.11,14.7055]
[1741590183467,10.84140789,128.16,128.11,14.7055]
[1741590185195,10.66924632,128.14,128.11,6.9]
[1741590185395,10.66924632,128.14,128.11,14.7057]
[1741590186176,10.66924632,128.14,128.11,7.8057]
[1741590186387,10.66924632,128.13,128.1,192.883]
[1741590186679,10.66924632,128.13,128.1,200.6891]
[1741590186854,10.66924632,128.13,128.1,193.7891]
[1741590187265,10.66924632,128.12,128.1,185.983]
[1741590187481,10.81140789,128.11,128.1,185.983]
[1741590187976,10.81140789,128.11,128.1,0.063]
[1741590194171,0.14216157,128.11,128.1,0.063]
[1741590195472,10.81140789,128.13,128.1,0.063]
[1741590196463,0.14216157,128.13,128.1,0.063]
[1741590196782,0.03,128.16,128.12,10.66924632]
[1741590196983,0.03,128.16,128.13,10.66924632]
[1741590197475,0.03,128.16,128.14,7.8039]
[1741590198876,0.03,128.16,128.14,18.47314632]
[1741590199080,0.03,128.16,128.15,10.66924632]
[1741590199382,0.03,128.16,128.14,18.47314632]
[1741590200195,0.03,128.16,128.15,29.31889518]
[1741590200992,0.03,128.16,128.15,37.12219518]
[1741590205097,0.03,128.16,128.15,18.47254632]
[1741590205267,0.5,128.18,128.16,18.64964886]
[1741590205467,0.5,128.18,128.17,17.60924632]
[1741590206283,0.0001,128.18,128.17,253.15887705]
[1741590206678,0.0001,128.18,128.17,566.65917705]
[1741590206980,0.0001,128.18,128.17,574.46127705]
[1741590207179,0.5,128.25,128.19,18.64964886]
[1741590207375,0.5,128.25,128.21,10.66924632]
[1741590207587,0.5,128.25,128.22,6.94]
[1741590207775,0.5,128.25,128.22,17.60924632]
[1741590207982,0.5,128.25,128.23,10.66924632]
[1741590208296,0.5,128.25,128.22,23.58240173]
[1741590209083,0.5,128.25,128.23,7.7984]
[1741590209779,0.64216157,128.25,128.22,6.94]
[1741590209978,0.14216157,128.24,128.22,6.94]
[1741590210171,16.7845633,128.24,128.22,6.94]
[1741590210374,0.14216157,128.24,128.22,6.94]
[1741590210875,17.14240173,128.25,128.22,6.94]
[1741590211483,17.17240173,128.25,128.22,6.94]
[1741590212100,16.64240173,128.23,128.22,6.94]
[1741590213300,16.7845633,128.23,128.22,6.94]
[1741590213513,0.14216157,128.23,128.22,6.94]
[1741590213817,0.53,128.25,128.22,31.38130173]
[1741590215085,0.53,128.25,128.23,16.64240173]
[1741590216414,0.53,128.25,128.24,36.64240173]
[1741590216992,0.53,128.25,128.22,35.8391]
[1741590217192,0.53,128.25,128.24,16.64240173]
[1741590219301,0.53,128.25,128.24,24.44020173]
[1741590219500,0.03,128.26,128.24,43.08985059]
[1741590219681,0.03,128.26,128.25,16.64240173]
[1741590220486,0.0001,128.26,128.25,16.64240173]
[1741590220890,0.0001,128.26,128.24,241.3400836]
[1741590221488,0.0001,128.26,128.25,16.64240173]
[1741590222206,0.0001,128.26,128.24,241.3400836]
[1741590222505,0.0001,128.26,128.25,16.64240173]
[1741590222712,0.0001,128.26,128.24,224.69768187]
[1741590222885,0.0001,128.26,128.24,241.3400836]
[1741590223584,0.0001,128.26,128.24,89.29768187]
[1741590223792,16.7846633,128.26,128.21,7.7997]
[1741590223986,16.64240173,128.25,128.22,7.0]
[1741590224207,16.7846633,128.26,128.22,7.0]
[1741590224396,0.0001,128.26,128.22,23.64240173]
[1741590224899,0.0001,128.26,128.23,16.64240173]
[1741590225500,0.0001,128.26,128.22,7.0]
[1741590225702,0.0001,128.26,128.23,24.44060173]
[1741590228312,0.0001,128.26,128.24,16.64240173]
[1741590228502,0.0001,128.26,128.25,16.64240173]
[1741590228701,0.0001,128.26,128.25,24.43960173]
[1741590230292,0.0001,128.26,128.25,7.7972]
[1741590230505,0.0001,128.26,128.25,24.43960173]
[1741590230703,0.0001,128.26,128.25,43.08925059]
[1741590231300,0.0001,128.26,128.25,259.98913246]
[1741590231504,0.0001,128.26,128.25,571.98913246]
[1741590233444,0.0001,128.26,128.25,259.98913246]
[1741590236440,0.0001,128.26,128.25,571.98913246]
[1741590238238,0.0001,128.26,128.25,564.19193246]
[1741590238430,0.0001,128.26,128.25,252.19193246]
[1741590238771,0.0001,128.26,128.25,233.5422836]
[1741590238901,0.0001,128.26,128.25,7.02]
[1741590239246,0.0001,128.26,128.25,249.8841836]
[1741590239527,3.2487835,128.33,128.32,16.64240173]
[1741590239728,3.2487835,128.33,128.32,23.72240173]
[1741590240206,3.2487835,128.33,128.32,7.08]
[1741590240407,3.2487835,128.33,128.32,42.37205059]
[1741590240714,3.2487835,128.33,128.32,23.72240173]
[1741590241104,3.2487835,128.33,128.32,7.08]
[1741590243931,3.2487835,128.33,128.31,7.06]
[1741590244130,3.07111001,128.33,128.31,7.06]
[1741590246521,3.07111001,128.33,128.31,23.70240173]
[1741590247417,3.07111001,128.33,128.32,16.64240173]
[1741590247724,3.07111001,128.33,128.32,24.43540173]
[1741590247931,3.07111001,128.33,128.31,31.49580173]
[1741590249220,3.07111001,128.33,128.32,16.64240173]
[1741590249722,3.07111001,128.33,128.32,31.49540173]
[1741590250143,3.07111001,128.33,128.32,50.14505059]
[1741590251259,1.001e-05,128.33,128.32,267.04483246]
[1741590251543,1.001e-05,128.34,128.33,18.64964886]
[1741590251734,1.001e-05,128.34,128.33,59.72685232]
[1741590251956,1.001e-05,128.34,128.33,277.93700932]
[1741590252125,0.5,128.4,128.33,277.93700932]
[1741590252126,0.5,128.4,128.39,16.64240173]
[1741590252329,0.5,128.4,128.39,23.70240173]
[1741590253241,0.5,128.4,128.39,42.35205059]
[1741590253447,5.8364955,128.4,128.39,42.35205059]
[1741590253747,5.8364955,128.4,128.39,50.14075059]
[1741590254043,5.8364955,128.4,128.39,335.70240173]
[1741590254240,5.8364955,128.4,128.39,343.49110173]
[1741590255031,5.8364955,128.4,128.39,362.14075059]
[1741590256048,5.8364955,128.4,128.39,354.35205059]
[1741590256552,5.8364955,128.4,128.39,7.06]
[1741590257146,5.8364955,128.4,128.39,23.70240173]
[1741590257347,5.8364955,128.4,128.39,50.14075059]
[1741590259244,5.8364955,128.4,128.39,286.35209191]
[1741590259447,5.8364955,128.4,128.39,597.18423419]
[1741590259660,8.5524,128.48,128.4,94.4550968]
[1741590259862,8.5524,128.48,128.45,16.64240173]
[1741590260071,8.5524,128.48,128.45,23.70240173]
[1741590260354,0.5,128.48,128.45,23.70240173]
[1741590260729,0.5,128.48,128.46,16.64240173]
[1741590260929,0.5,128.48,128.47,35.29205059]
[1741590261246,0.53,128.48,128.47,35.29205059]
[1741590261420,0.53,128.48,128.47,246.35533696]
[1741590262022,0.5,128.48,128.47,254.13923696]
[1741590262940,0.5,128.55,128.47,585.59893696]
[1741590263139,0.5,128.55,128.51,16.64240173]
[1741590263339,0.5,128.55,128.52,7.06]
[1741590263953,0.5,128.55,128.53,16.64240173]
[1741590264133,0.5,128.55,128.54,16.64240173]
[1741590264851,0.5,128.55,128.54,246.35533696]
[1741590265039,2.6860012,128.58,128.55,94.31293523]
[1741590265245,2.6860012,128.58,128.56,18.64964886]
[1741590265438,2.6860012,128.58,128.57,23.74240173]
[1741590265650,2.6860012,128.58,128.55,211.06328637]
[1741590265972,16.7845633,128.57,128.53,75.66328637]
[1741590266464,16.64240173,128.57,128.52,16.64240173]
[1741590266841,27.10570293,128.58,128.52,16.64240173]
[1741590267462,2.6860012,128.58,128.53,16.64240173]
[1741590267661,19.32840293,128.58,128.53,16.64240173]
[1741590267882,2.6860012,128.58,128.54,16.64240173]
[1741590268242,19.32840293,128.58,128.52,26.43004886]
[1741590268449,27.10580293,128.58,128.52,18.64964886]
[1741590268650,27.10580293,128.58,128.53,16.64240173]
[1741590268861,16.64240173,128.57,128.52,18.64964886]
[1741590269167,27.10580293,128.58,128.53,16.64240173]
[1741590270963,2.6860012,128.58,128.53,92.3056881]
[1741590271140,2.6860012,128.58,128.54,16.64240173]
[1741590271343,10.4632012,128.58,128.53,99.4056881]
[1741590271577,16.7845633,128.57,128.53,82.76328637]
[1741590272061,16.64240173,128.55,128.5,16.64240173]
[1741590272268,16.64240173,128.55,128.5,7.1]
[1741590272467,16.64240173,128.54,128.5,7.1]
[1741590272849,16.7845633,128.55,128.5,7.1]
[1741590273049,16.64240173,128.53,128.5,7.1]
[1741590273577,16.7845633,128.55,128.5,7.1]
[1741590273746,0.14216157,128.55,128.5,23.74240173]
[1741590274052,0.14216157,128.57,128.51,24.42380173]
[1741590274251,0.14216157,128.57,128.53,16.64240173]
[1741590274457,19.32840293,128.58,128.53,16.64240173]
[1741590274458,2.6860012,128.58,128.53,16.64240173]
[1741590275063,19.32840293,128.58,128.52,18.64964886]
[1741590275265,16.64240173,128.57,128.52,35.29205059]
[1741590275468,19.32840293,128.58,128.53,16.64240173]
[1741590276271,27.10580293,128.58,128.53,16.64240173]
[1741590276647,2.6860012,128.58,128.53,24.42260173]
[1741590277143,19.32840293,128.58,128.53,24.42260173]
[1741590278767,16.64240173,128.57,128.53,7.7802]
[1741590279751,19.32840293,128.58,128.53,24.42260173]
[1741590279950,2.6860012,128.58,128.53,24.42260173]
[1741590281072,19.32840293,128.58,128.53,24.42260173]
[1741590281271,2.6860012,128.58,128.56,16.64240173]
[1741590281569,2.6860012,128.58,128.56,23.74240173]
[1741590281774,2.6860012,128.58,128.57,35.29205059]
[1741590281945,1.2e-06,128.58,128.57,36.90185059]
[1741590282149,1.2e-06,128.58,128.57,253.80185059]
[1741590282349,1.2e-06,128.58,128.57,565.80185059]
[1741590282874,1.2e-06,128.58,128.57,582.58641389]
[1741590283053,0.5,128.63,128.62,35.29205059]
[1741590283254,0.0001,128.63,128.62,267.18684939]
[1741590283952,0.0001,128.63,128.62,259.96684939]
[1741590284148,0.0001,128.63,128.62,7.26]
[1741590284351,0.0001,128.63,128.6,89.2758988]
[1741590284569,16.64240173,128.62,128.6,81.4999988]
[1741590284976,16.64240173,128.62,128.59,192.58]
[1741590285154,0.0001,128.63,128.59,209.22240173]
[1741590285361,0.0001,128.63,128.59,216.99900173]
[1741590285559,0.0001,128.63,128.59,216.99890173]
[1741590285778,0.0001,128.63,128.6,35.29205059]
[1741590285956,0.0001,128.63,128.62,347.29205059]
[1741590286259,0.0001,128.63,128.62,564.19204939]
[1741590286680,0.0001,128.63,128.62,216.8999988]
[1741590286878,0.0001,128.63,128.59,309.37204939]
[1741590287055,0.0001,128.63,128.59,290.72240053]
[1741590287257,0.0001,128.63,128.6,16.64240173]
[1741590287467,0.0001,128.63,128.6,81.4999988]
[1741590287665,16.64250173,128.63,128.59,327.98]
[1741590287865,0.0001,128.63,128.59,327.98]
[1741590288361,16.64240173,128.62,128.59,327.98]
[1741590288781,16.64250173,128.63,128.59,327.98]
[1741590289275,7.7748,128.62,128.59,327.98]
[1741590289480,16.7845633,128.62,128.59,185.32]
[1741590289669,16.7845633,128.62,128.56,7.7783]
[1741590289670,16.64240173,128.61,128.56,7.34]
[1741590290177,0.14216157,128.62,128.56,7.34]
[1741590290178,16.64240173,128.58,128.56,7.34]
[1741590290389,82.54216157,128.62,128.56,7.34]
[1741590290601,26.50124796,128.59,128.56,7.34]
[1741590290961,26.50124796,128.6,128.56,7.34]
[1741590291268,82.54216157,128.62,128.56,33.84124796]
[1741590291465,26.50124796,128.61,128.56,7.34]
[1741590291874,26.50124796,128.61,128.56,15.1184]
[1741590292383,26.50124796,128.6,128.56,7.34]
[1741590292975,26.50124796,128.6,128.56,15.1184]
[1741590293176,26.50124796,128.6,128.56,7.34]
[1741590293686,26.50124796,128.61,128.56,7.34]
[1741590294086,26.50124796,128.61,128.56,123.11934676]
[1741590294385,26.50124796,128.62,128.57,26.50124796]
[1741590294580,0.0001,128.63,128.58,26.50124796]
[1741590295260,0.0001,128.63,128.59,26.50124796]
[1741590295667,0.0001,128.63,128.6,26.50124796]
[1741590295975,0.0001,128.63,128.6,34.27704796]
[1741590296178,0.0001,128.63,128.61,7.34]
[1741590297790,0.0001,128.63,128.61,250.74124676]
[1741590298084,0.0001,128.63,128.61,224.2399988]
[1741590298284,0.0001,128.63,128.61,232.0153988]
[1741590298487,0.0001,128.63,128.61,258.51664676]
[1741590298662,0.0001,128.63,128.62,26.50124796]
[1741590299103,0.0001,128.63,128.61,258.51664676]
[1741590299303,0.0001,128.63,128.62,312.0]
[1741590299468,0.0301,128.63,128.62,312.0]
[1741590299985,0.0301,128.63,128.62,319.7748]
[1741590300163,0.0301,128.63,128.62,7.7748]
[1741590300369,0.0301,128.63,128.61,7.403]
[1741590300575,0.0301,128.63,128.61,15.1784]
[1741590300778,0.0301,128.63,128.61,7.403]
[1741590301072,26.50134796,128.63,128.61,7.403]
[1741590301779,0.0001,128.63,128.61,7.403]
[1741590302183,26.50134796,128.63,128.61,7.403]
[1741590302789,0.0001,128.63,128.61,7.403]
[1741590303594,0.0001,128.63,128.61,15.1781]
[1741590304090,0.0001,128.63,128.61,33.90424796]